[Event "IV Pullman Blitz 2022"]
[Site "Riga, Latvia"]
[Date "2022.02.20"]
[Round "1.1"]
[White "Berzinsh, Roland"]
[Black "Aminovs, Maksims"]
[Result "1-0"]
[TimeControl "180+2"]
[WhiteTitle "IM"]
[WhiteElo "2285"]
[BlackElo "1669"]

1. e4 {[%clk 00:03:01]} {[%emt 00:00:02]} Nf6 {[%clk 00:03:03]} {[%emt
00:00:02]} 2. e5 {[%clk 00:03:02]} {[%emt 00:00:01]} Nd5 {[%clk 00:03:04]}
{[%emt 00:00:01]} 3. d4 {[%clk 00:03:04]} d6 {[%clk 00:03:05]} {[%emt
00:00:02]} 4. c4 {[%clk 00:03:05]} Nb6 {[%clk 00:03:06]} {[%emt 00:00:02]} 5.
exd6 {[%clk 00:03:06]} cxd6 {[%clk 00:03:07]} 6. d5 {[%clk 00:03:06]} {[%emt
00:00:01]} g6 {[%clk 00:02:59]} {[%emt 00:00:11]} 7. Qd4 {[%clk 00:03:07]} Rg8
{[%clk 00:02:21]} {[%emt 00:00:40]} 8. Be3 {[%clk 00:03:07]} {[%emt 00:00:02]}
Bg7 {[%clk 00:02:20]} {[%emt 00:00:03]} 9. Qd2 {[%clk 00:03:08]} N8d7 {[%clk
00:02:16]} {[%emt 00:00:07]} 10. Nc3 {[%clk 00:03:08]} {[%emt 00:00:02]} Ne5
{[%clk 00:02:00]} {[%emt 00:00:18]} 11. b3 {[%clk 00:03:10]} Bd7 {[%clk
00:01:46]} {[%emt 00:00:16]} 12. h3 {[%clk 00:03:09]} {[%emt 00:00:03]} f5
{[%clk 00:01:26]} {[%emt 00:00:22]} 13. f4 {[%clk 00:03:09]} {[%emt 00:00:02]}
Nf7 {[%clk 00:01:26]} {[%emt 00:00:02]} 14. Nf3 {[%clk 00:03:10]} e5 {[%clk
00:01:13]} {[%emt 00:00:16]} 15. dxe6 {[%clk 00:03:11]} {[%emt 00:00:01]} Bxe6
{[%clk 00:01:13]} {[%emt 00:00:02]} 16. Nd4 {[%clk 00:03:11]} {[%emt 00:00:02]}
Qe7 {[%clk 00:01:05]} {[%emt 00:00:10]} 17. Be2 {[%clk 00:03:07]} {[%emt
00:00:06]} O-O-O {[%clk 00:01:03]} {[%emt 00:00:04]} 18. Rc1 {[%clk 00:02:54]}
{[%emt 00:00:16]} Rge8 {[%clk 00:00:52]} {[%emt 00:00:13]} 19. O-O {[%clk
00:02:47]} {[%emt 00:00:09]} Kb8 {[%clk 00:00:49]} {[%emt 00:00:05]} 20. Bf2
{[%clk 00:02:35]} {[%emt 00:00:14]} g5 {[%clk 00:00:37]} {[%emt 00:00:15]} 21.
Rfe1 {[%clk 00:02:22]} {[%emt 00:00:14]} gxf4 {[%clk 00:00:26]} {[%emt
00:00:13]} 22. Bh5 {[%clk 00:02:20]} {[%emt 00:00:04]} Bxd4 {[%clk 00:00:19]}
{[%emt 00:00:09]} 23. Qxd4 {[%clk 00:02:18]} {[%emt 00:00:04]} Qf8 {[%clk
00:00:07]} {[%emt 00:00:14]} 24. Qxf4 {[%clk 00:01:51]} {[%emt 00:00:28]} Qg7
{[%clk 00:00:06]} {[%emt 00:00:03]} 25. Bd4 {[%clk 00:01:48]} {[%emt 00:00:04]}
Qg5 {[%clk 00:00:06]} {[%emt 00:00:03]} 26. Qxg5 {[%clk 00:01:49]} {[%emt
00:00:02]} Nxg5 {[%clk 00:00:06]} {[%emt 00:00:02]} 27. Bxe8 {[%clk 00:01:49]}
Rxe8 {[%clk 00:00:08]} 28. Nd5 {[%clk 00:01:46]} {[%emt 00:00:05]} Rg8 {[%clk
00:00:05]} {[%emt 00:00:04]} 29. Kh2 {[%clk 00:01:40]} {[%emt 00:00:08]} Nxd5
{[%clk 00:00:06]} {[%emt 00:00:02]} 30. cxd5 {[%clk 00:01:39]} {[%emt
00:00:03]} Bxd5 {[%clk 00:00:07]} {[%emt 00:00:02]} 31. Be3 {[%clk 00:01:27]}
{[%emt 00:00:14]} Ne6 {[%clk 00:00:07]} {[%emt 00:00:02]} 32. Rc2 {[%clk
00:01:24]} {[%emt 00:00:05]} f4 {[%clk 00:00:09]} {[%emt 00:00:01]} 33. Bg1
{[%clk 00:01:23]} {[%emt 00:00:03]} f3 {[%clk 00:00:09]} {[%emt 00:00:01]} 34.
gxf3 {[%clk 00:01:23]} {[%emt 00:00:02]} Nf4 {[%emt 00:00:05]} 35. Be3 {[%clk
00:01:14]} {[%emt 00:00:07]} Ne6 {[%clk 00:00:10]} {[%emt 00:00:03]} 36. Rg2
{[%clk 00:01:09]} {[%emt 00:00:07]} Re8 {[%clk 00:00:09]} {[%emt 00:00:03]} 37.
Rd1 {[%clk 00:01:07]} {[%emt 00:00:04]} Bxf3 {[%clk 00:00:07]} {[%emt
00:00:05]} 38. Rf2 {[%clk 00:01:06]} {[%emt 00:00:02]} Bxd1 {[%clk 00:00:07]}
{[%emt 00:00:01]} 39. Rf7 {[%clk 00:01:06]} {[%emt 00:00:02]} Nc7 {[%clk
00:00:08]} {[%emt 00:00:02]} 40. Bf4 {[%clk 00:01:06]} {[%emt 00:00:02]} Rd8
{[%clk 00:00:07]} {[%emt 00:00:02]} 41. Rxh7 {[%clk 00:01:06]} {[%emt
00:00:02]} Kc8 {[%clk 00:00:07]} {[%emt 00:00:02]} 42. h4 {[%clk 00:01:07]}
{[%emt 00:00:01]} Bf3 {[%clk 00:00:08]} {[%emt 00:00:01]} 43. h5 {[%clk
00:01:06]} {[%emt 00:00:03]} d5 {[%clk 00:00:09]} {[%emt 00:00:01]} 44. Rxc7+
{[%emt 00:00:07]} 1-0

[Event "IV Pullman Blitz 2022"]
[Site "Riga, Latvia"]
[Date "2022.02.20"]
[Round "1.2"]
[White "Verhni, Vladimir"]
[Black "Mustaps, Matiss"]
[Result "0-1"]
[TimeControl "180+2"]
[BlackTitle "FM"]
[WhiteElo "1656"]
[BlackElo "2261"]

1. e4 {[%clk 00:03:01]} {[%emt 00:00:01]} c5 {[%clk 00:03:03]} {[%emt
00:00:02]} 2. c4 {[%clk 00:03:02]} {[%emt 00:00:01]} Nc6 {[%clk 00:03:04]}
{[%emt 00:00:01]} 3. Nc3 {[%clk 00:03:03]} {[%emt 00:00:01]} g6 {[%clk
00:03:06]} 4. g3 {[%clk 00:03:03]} {[%emt 00:00:02]} Bg7 {[%clk 00:03:07]} 5.
Bg2 {[%clk 00:03:04]} {[%emt 00:00:02]} d6 {[%clk 00:03:08]} 6. Nge2 {[%clk
00:03:05]} {[%emt 00:00:02]} e6 {[%clk 00:03:10]} 7. O-O {[%clk 00:03:05]}
{[%emt 00:00:02]} Nge7 {[%clk 00:03:11]} 8. d3 {[%clk 00:03:03]} {[%emt
00:00:03]} O-O {[%clk 00:03:11]} {[%emt 00:00:02]} 9. Be3 {[%clk 00:03:04]}
{[%emt 00:00:01]} Nd4 {[%clk 00:03:12]} 10. f4 {[%clk 00:03:02]} {[%emt
00:00:05]} f5 {[%clk 00:03:12]} {[%emt 00:00:02]} 11. Rc1 {[%clk 00:02:53]}
{[%emt 00:00:11]} Nec6 {[%clk 00:03:12]} {[%emt 00:00:03]} 12. h3 {[%clk
00:02:52]} {[%emt 00:00:03]} a6 {[%clk 00:03:14]} {[%emt 00:00:01]} 13. Qd2
{[%clk 00:02:52]} {[%emt 00:00:01]} Rb8 {[%clk 00:03:14]} {[%emt 00:00:02]} 14.
Bf2 {[%clk 00:02:42]} {[%emt 00:00:11]} b5 {[%clk 00:03:15]} {[%emt 00:00:02]}
15. b3 {[%clk 00:02:41]} {[%emt 00:00:03]} Bd7 {[%clk 00:02:53]} {[%emt
00:00:24]} 16. Nxd4 {[%clk 00:02:39]} {[%emt 00:00:04]} Nxd4 {[%clk 00:02:48]}
{[%emt 00:00:07]} 17. Ne2 {[%clk 00:02:40]} {[%emt 00:00:01]} Nxe2+ {[%clk
00:02:15]} {[%emt 00:00:35]} 18. Qxe2 {[%clk 00:02:40]} {[%emt 00:00:02]} a5
{[%clk 00:02:14]} {[%emt 00:00:04]} 19. g4 {[%clk 00:02:40]} {[%emt 00:00:02]}
a4 {[%clk 00:02:13]} {[%emt 00:00:03]} 20. exf5 {[%clk 00:02:30]} {[%emt
00:00:12]} gxf5 {[%clk 00:02:14]} {[%emt 00:00:02]} 21. g5 {[%clk 00:02:31]}
{[%emt 00:00:01]} bxc4 {[%clk 00:02:03]} {[%emt 00:00:13]} 22. dxc4 {[%clk
00:02:28]} {[%emt 00:00:04]} axb3 {[%clk 00:02:04]} {[%emt 00:00:02]} 23. axb3
{[%clk 00:02:29]} Rxb3 {[%clk 00:02:06]} {[%emt 00:00:01]} 24. Qd1 {[%clk
00:02:20]} {[%emt 00:00:10]} Qb6 {[%clk 00:02:01]} {[%emt 00:00:07]} 25. Rb1
{[%clk 00:02:19]} {[%emt 00:00:03]} Rxb1 {[%clk 00:01:47]} {[%emt 00:00:15]} 26.
Qxb1 {[%clk 00:02:19]} {[%emt 00:00:01]} Rb8 {[%clk 00:01:49]} 27. Qd3 {[%clk
00:02:16]} {[%emt 00:00:06]} Be8 {[%clk 00:01:33]} {[%emt 00:00:18]} 28. Bf3
{[%clk 00:02:12]} {[%emt 00:00:06]} Bf7 {[%clk 00:01:32]} {[%emt 00:00:03]} 29.
Rd1 {[%clk 00:02:11]} {[%emt 00:00:02]} Rd8 {[%clk 00:01:33]} {[%emt 00:00:01]}
30. h4 {[%clk 00:02:12]} Qc7 {[%clk 00:01:15]} {[%emt 00:00:21]} 31. h5 {[%clk
00:02:05]} {[%emt 00:00:08]} d5 {[%clk 00:01:16]} {[%emt 00:00:01]} 32. cxd5
{[%clk 00:01:55]} {[%emt 00:00:12]} Qxf4 {[%clk 00:01:17]} {[%emt 00:00:01]} 33.
g6 {[%clk 00:01:46]} {[%emt 00:00:10]} hxg6 {[%clk 00:01:14]} {[%emt 00:00:05]}
34. hxg6 {[%clk 00:01:47]} {[%emt 00:00:02]} Bxg6 {[%clk 00:01:13]} {[%emt
00:00:03]} 35. Bxc5 {[%clk 00:01:28]} {[%emt 00:00:20]} Qg3+ {[%clk 00:01:02]}
{[%emt 00:00:14]} 36. Kf1 {[%clk 00:01:25]} {[%emt 00:00:05]} f4 {[%clk
00:00:41]} {[%emt 00:00:23]} 37. Qe2 {[%clk 00:01:26]} {[%emt 00:00:01]} e5
{[%clk 00:00:39]} {[%emt 00:00:04]} 38. Bf2 {[%clk 00:01:19]} {[%emt 00:00:08]}
Qh3+ {[%clk 00:00:38]} {[%emt 00:00:04]} 39. Bg2 {[%clk 00:01:19]} {[%emt
00:00:01]} Qf5 {[%clk 00:00:39]} {[%emt 00:00:01]} 40. d6 {[%clk 00:01:17]}
{[%emt 00:00:05]} e4 {[%clk 00:00:40]} 41. Bb6 {[%clk 00:01:10]} {[%emt
00:00:10]} f3 {[%clk 00:00:39]} {[%emt 00:00:03]} 42. Bxf3 {[%clk 00:01:08]}
{[%emt 00:00:03]} exf3 {[%clk 00:00:40]} {[%emt 00:00:02]} 43. Qc4+ {[%clk
00:00:48]} {[%emt 00:00:22]} Bf7 {[%clk 00:00:40]} {[%emt 00:00:02]} 44. Qd3
{[%clk 00:00:46]} {[%emt 00:00:04]} Qh3+ {[%clk 00:00:15]} {[%emt 00:00:28]} 45.
Kf2 {[%clk 00:00:43]} {[%emt 00:00:05]} Qg2+ {[%clk 00:00:14]} {[%emt
00:00:02]} 46. Ke3 {[%clk 00:00:42]} {[%emt 00:00:02]} Re8+ {[%clk 00:00:15]}
{[%emt 00:00:01]} 47. Kf4 {[%clk 00:00:42]} {[%emt 00:00:02]} Bh6+ {[%clk
00:00:15]} {[%emt 00:00:02]} 48. Kf5 {[%clk 00:00:37]} {[%emt 00:00:07]} Qg5#
{[%clk 00:00:17]} 0-1

[Event "IV Pullman Blitz 2022"]
[Site "Riga, Latvia"]
[Date "2022.02.20"]
[Round "1.3"]
[White "Sveshnikov, Vladimir"]
[Black "Dombrovska, Stefanija"]
[Result "1-0"]
[TimeControl "180+2"]
[WhiteTitle "IM"]
[WhiteElo "2233"]
[BlackElo "1630"]

1. e4 {[%clk 00:03:02]} {[%emt 00:00:01]} Nc6 {[%clk 00:03:04]} 2. Nf3 {[%clk
00:03:03]} {[%emt 00:00:02]} e5 {[%clk 00:03:05]} {[%emt 00:00:01]} 3. Bb5
{[%clk 00:03:04]} {[%emt 00:00:01]} d6 {[%clk 00:03:06]} 4. d4 {[%clk
00:03:05]} {[%emt 00:00:01]} exd4 {[%clk 00:03:06]} {[%emt 00:00:02]} 5. O-O
{[%clk 00:03:05]} {[%emt 00:00:02]} Bd7 {[%clk 00:03:06]} {[%emt 00:00:01]} 6.
Bxc6 {[%clk 00:03:04]} {[%emt 00:00:04]} Bxc6 {[%clk 00:03:06]} {[%emt
00:00:01]} 7. Nxd4 {[%clk 00:03:05]} Bd7 {[%clk 00:03:07]} {[%emt 00:00:02]} 8.
Nc3 {[%clk 00:03:05]} {[%emt 00:00:02]} Nf6 {[%clk 00:03:08]} {[%emt 00:00:01]}
9. Bg5 {[%clk 00:02:56]} {[%emt 00:00:11]} Be7 {[%clk 00:03:09]} {[%emt
00:00:01]} 10. Qf3 {[%clk 00:02:53]} {[%emt 00:00:04]} O-O {[%clk 00:03:09]}
{[%emt 00:00:03]} 11. Rfe1 {[%clk 00:02:51]} {[%emt 00:00:04]} c5 {[%clk
00:03:06]} {[%emt 00:00:05]} 12. Nf5 {[%clk 00:02:49]} {[%emt 00:00:04]} Bxf5
{[%clk 00:03:06]} {[%emt 00:00:02]} 13. exf5 {[%clk 00:02:27]} {[%emt
00:00:25]} Rb8 {[%clk 00:02:53]} {[%emt 00:00:14]} 14. Rad1 {[%clk 00:02:14]}
{[%emt 00:00:15]} h6 {[%clk 00:02:52]} {[%emt 00:00:04]} 15. Bh4 {[%clk
00:02:11]} {[%emt 00:00:04]} Nd5 {[%clk 00:02:25]} {[%emt 00:00:28]} 16. Bxe7
{[%clk 00:01:53]} {[%emt 00:00:20]} Nxe7 {[%clk 00:02:26]} {[%emt 00:00:01]} 17.
f6 {[%clk 00:01:54]} {[%emt 00:00:01]} Ng6 {[%clk 00:02:18]} {[%emt 00:00:10]}
18. Nd5 {[%clk 00:01:39]} {[%emt 00:00:17]} b5 {[%clk 00:01:47]} {[%emt
00:00:33]} 19. Ne7+ {[%clk 00:01:28]} {[%emt 00:00:13]} Kh7 {[%clk 00:01:35]}
{[%emt 00:00:14]} 20. Nc6 {[%clk 00:01:25]} {[%emt 00:00:04]} Qxf6 {[%clk
00:01:29]} {[%emt 00:00:08]} 21. Qxf6 {[%clk 00:01:24]} {[%emt 00:00:03]} gxf6
{[%clk 00:01:29]} {[%emt 00:00:02]} 22. Nxb8 {[%clk 00:01:25]} {[%emt
00:00:02]} Rxb8 {[%clk 00:01:29]} {[%emt 00:00:02]} 23. Rxd6 {[%clk 00:01:25]}
{[%emt 00:00:01]} Kg7 {[%clk 00:01:29]} {[%emt 00:00:02]} 24. g3 {[%clk
00:01:19]} {[%emt 00:00:09]} Rb7 {[%clk 00:01:28]} {[%emt 00:00:04]} 25. f4
{[%clk 00:01:17]} {[%emt 00:00:04]} Ne7 {[%clk 00:01:23]} {[%emt 00:00:07]} 26.
Red1 {[%clk 00:01:08]} {[%emt 00:00:10]} Nf5 {[%clk 00:01:18]} {[%emt
00:00:07]} 27. Rd7 {[%clk 00:01:06]} {[%emt 00:00:03]} Rb6 {[%clk 00:01:14]}
{[%emt 00:00:08]} 28. Rxa7 {[%clk 00:01:02]} {[%emt 00:00:06]} Nd4 {[%clk
00:00:57]} {[%emt 00:00:18]} 29. c3 {[%clk 00:01:00]} {[%emt 00:00:04]} Nc6
{[%clk 00:00:42]} {[%emt 00:00:17]} 30. Rc7 {[%clk 00:01:01]} {[%emt 00:00:01]}
Nb8 {[%clk 00:00:30]} {[%emt 00:00:14]} 31. Rxc5 {[%clk 00:01:01]} {[%emt
00:00:02]} b4 {[%clk 00:00:26]} {[%emt 00:00:07]} 32. cxb4 {[%clk 00:01:00]}
{[%emt 00:00:03]} Rxb4 {[%clk 00:00:26]} {[%emt 00:00:01]} 33. b3 {[%clk
00:01:01]} {[%emt 00:00:02]} Re4 {[%clk 00:00:25]} {[%emt 00:00:03]} 34. Kf2
{[%clk 00:01:00]} {[%emt 00:00:02]} Na6 {[%clk 00:00:26]} {[%emt 00:00:02]} 35.
Rc4 {[%clk 00:01:00]} {[%emt 00:00:02]} Re6 {[%clk 00:00:24]} {[%emt 00:00:04]}
36. Rd7 {[%clk 00:01:00]} {[%emt 00:00:02]} Nb8 {[%clk 00:00:19]} {[%emt
00:00:07]} 37. Rd5 {[%clk 00:00:56]} {[%emt 00:00:05]} Nc6 {[%clk 00:00:17]}
{[%emt 00:00:05]} 38. h4 {[%clk 00:00:54]} {[%emt 00:00:04]} Ne7 {[%clk
00:00:17]} {[%emt 00:00:02]} 39. Rdc5 {[%clk 00:00:52]} {[%emt 00:00:03]} Rd6
{[%clk 00:00:17]} {[%emt 00:00:03]} 40. Rc2 {[%clk 00:00:48]} {[%emt 00:00:06]}
f5 {[%clk 00:00:14]} {[%emt 00:00:05]} 41. h5 {[%clk 00:00:47]} {[%emt
00:00:03]} Kf6 {[%clk 00:00:14]} {[%emt 00:00:02]} 42. b4 {[%clk 00:00:45]}
{[%emt 00:00:04]} Rd4 {[%clk 00:00:13]} {[%emt 00:00:03]} 43. b5 {[%clk
00:00:44]} {[%emt 00:00:03]} Rb4 {[%clk 00:00:09]} {[%emt 00:00:05]} 44. a3
{[%clk 00:00:44]} {[%emt 00:00:02]} Rb3 {[%clk 00:00:10]} 45. a4 {[%clk
00:00:45]} {[%emt 00:00:01]} 1-0

[Event "IV Pullman Blitz 2022"]
[Site "Riga, Latvia"]
[Date "2022.02.20"]
[Round "2.1"]
[White "Krivenko, Dion"]
[Black "Berzinsh, Roland"]
[Result "1/2-1/2"]
[TimeControl "180+2"]
[BlackTitle "IM"]
[WhiteElo "1919"]
[BlackElo "2285"]

1. e4 {[%clk 00:03:03]} c5 {[%clk 00:03:03]} {[%emt 00:00:02]} 2. Nf3 {[%clk
00:03:03]} {[%emt 00:00:02]} b6 {[%clk 00:03:04]} 3. c3 {[%clk 00:02:57]}
{[%emt 00:00:09]} Bb7 {[%clk 00:03:04]} {[%emt 00:00:01]} 4. Bd3 {[%clk
00:02:58]} {[%emt 00:00:02]} Nf6 {[%clk 00:02:52]} {[%emt 00:00:14]} 5. Qe2
{[%clk 00:02:58]} {[%emt 00:00:02]} e6 {[%clk 00:02:47]} {[%emt 00:00:07]} 6.
Bc2 {[%clk 00:02:57]} {[%emt 00:00:03]} Be7 {[%clk 00:02:40]} {[%emt 00:00:09]}
7. O-O {[%clk 00:02:57]} {[%emt 00:00:03]} O-O {[%clk 00:02:41]} {[%emt
00:00:01]} 8. d4 {[%clk 00:02:56]} {[%emt 00:00:02]} cxd4 {[%emt 00:00:01]} 9.
cxd4 {[%clk 00:02:57]} Ba6 {[%clk 00:02:43]} {[%emt 00:00:01]} 10. Bd3 {[%clk
00:02:49]} {[%emt 00:00:10]} Bxd3 {[%clk 00:02:43]} {[%emt 00:00:01]} 11. Qxd3
{[%clk 00:02:50]} {[%emt 00:00:01]} d5 {[%clk 00:02:41]} {[%emt 00:00:04]} 12.
e5 {[%clk 00:02:49]} {[%emt 00:00:03]} Ne4 {[%clk 00:02:33]} {[%emt 00:00:10]}
13. Nbd2 {[%clk 00:02:41]} {[%emt 00:00:11]} Nxd2 {[%clk 00:02:27]} {[%emt
00:00:08]} 14. Bxd2 {[%clk 00:02:42]} Nd7 {[%clk 00:02:27]} {[%emt 00:00:02]}
15. g3 {[%clk 00:02:37]} {[%emt 00:00:07]} Qc7 {[%clk 00:02:19]} {[%emt
00:00:10]} 16. h4 {[%clk 00:02:10]} {[%emt 00:00:29]} Rfc8 {[%clk 00:02:20]} 17.
Rac1 {[%clk 00:02:05]} {[%emt 00:00:08]} Qb7 {[%clk 00:02:20]} {[%emt
00:00:02]} 18. Ng5 {[%clk 00:01:58]} {[%emt 00:00:08]} Bxg5 {[%clk 00:02:13]}
{[%emt 00:00:09]} 19. Bxg5 {[%clk 00:01:59]} {[%emt 00:00:01]} b5 {[%clk
00:02:07]} {[%emt 00:00:08]} 20. h5 {[%clk 00:01:58]} {[%emt 00:00:03]} h6
{[%clk 00:02:02]} {[%emt 00:00:08]} 21. Bd2 {[%clk 00:01:57]} {[%emt 00:00:03]}
a6 {[%clk 00:01:57]} {[%emt 00:00:07]} 22. g4 {[%clk 00:01:57]} {[%emt
00:00:02]} Rxc1 {[%clk 00:01:50]} {[%emt 00:00:09]} 23. Bxc1 {[%clk 00:01:48]}
{[%emt 00:00:11]} Rc8 {[%clk 00:01:45]} {[%emt 00:00:07]} 24. g5 {[%clk
00:01:36]} {[%emt 00:00:14]} hxg5 {[%clk 00:01:46]} {[%emt 00:00:01]} 25. Bxg5
{[%clk 00:01:37]} Qc6 {[%clk 00:01:30]} {[%emt 00:00:19]} 26. Qf3 {[%clk
00:01:17]} {[%emt 00:00:21]} Nf8 {[%clk 00:01:10]} {[%emt 00:00:22]} 27. Kg2
{[%clk 00:01:18]} {[%emt 00:00:01]} Qe8 {[%clk 00:01:02]} {[%emt 00:00:10]} 28.
h6 {[%clk 00:01:04]} {[%emt 00:00:16]} Nh7 {[%clk 00:00:43]} {[%emt 00:00:21]}
29. Be3 {[%clk 00:00:54]} {[%emt 00:00:11]} f5 {[%clk 00:00:36]} {[%emt
00:00:09]} 30. exf6 {[%clk 00:00:29]} {[%emt 00:00:27]} Qg6+ {[%clk 00:00:36]}
{[%emt 00:00:01]} 31. Kh2 {[%clk 00:00:21]} {[%emt 00:00:10]} Qxf6 {[%clk
00:00:28]} {[%emt 00:00:09]} 32. Qg3 {[%clk 00:00:19]} {[%emt 00:00:05]} g5
{[%clk 00:00:20]} {[%emt 00:00:10]} 33. Rg1 {[%clk 00:00:20]} Qxh6+ {[%clk
00:00:21]} 34. Kg2 {[%clk 00:00:20]} {[%emt 00:00:01]} Rf8 {[%clk 00:00:20]}
{[%emt 00:00:04]} 35. Kf1 {[%clk 00:00:21]} {[%emt 00:00:01]} Qg6 {[%clk
00:00:20]} {[%emt 00:00:02]} 36. Bxg5 {[%clk 00:00:14]} {[%emt 00:00:08]} Qb1+
{[%clk 00:00:20]} {[%emt 00:00:02]} 37. Kg2 {[%clk 00:00:15]} Qe4+ {[%clk
00:00:08]} {[%emt 00:00:14]} 38. Kf1 {[%clk 00:00:13]} {[%emt 00:00:05]} Qb1+
{[%clk 00:00:06]} {[%emt 00:00:04]} 39. Kg2 {[%clk 00:00:14]} Qe4+ {[%clk
00:00:07]} {[%emt 00:00:02]} 40. Kf1 {[%clk 00:00:15]} Qb1+ {[%clk 00:00:08]}
{[%emt 00:00:01]} 41. Kg2 {[%clk 00:00:16]} 1/2-1/2

[Event "IV Pullman Blitz 2022"]
[Site "Riga, Latvia"]
[Date "2022.02.20"]
[Round "2.2"]
[White "Mustaps, Matiss"]
[Black "Walther, Cliff"]
[Result "1-0"]
[TimeControl "180+2"]
[WhiteTitle "FM"]
[WhiteElo "2261"]
[BlackElo "1892"]

1. e4 {[%clk 00:03:01]} {[%emt 00:00:02]} c5 {[%clk 00:03:04]} {[%emt
00:00:02]} 2. Nf3 {[%clk 00:03:02]} Nc6 {[%clk 00:03:05]} 3. d3 {[%clk
00:03:03]} {[%emt 00:00:02]} g6 {[%clk 00:02:57]} {[%emt 00:00:10]} 4. g3
{[%clk 00:03:04]} {[%emt 00:00:01]} Bg7 {[%clk 00:02:56]} {[%emt 00:00:02]} 5.
Bg2 {[%clk 00:03:05]} e6 {[%clk 00:02:56]} {[%emt 00:00:02]} 6. O-O {[%clk
00:03:06]} {[%emt 00:00:02]} d5 {[%clk 00:02:55]} {[%emt 00:00:03]} 7. Nbd2
{[%clk 00:03:07]} {[%emt 00:00:01]} Nge7 {[%clk 00:02:53]} {[%emt 00:00:04]} 8.
Re1 {[%clk 00:03:08]} {[%emt 00:00:01]} O-O {[%clk 00:02:52]} {[%emt 00:00:03]}
9. c3 {[%clk 00:03:09]} b5 {[%clk 00:02:33]} {[%emt 00:00:21]} 10. e5 {[%clk
00:03:03]} {[%emt 00:00:08]} b4 {[%clk 00:02:30]} {[%emt 00:00:06]} 11. h4
{[%clk 00:03:01]} {[%emt 00:00:03]} a5 {[%clk 00:02:23]} {[%emt 00:00:09]} 12.
Nf1 {[%clk 00:03:02]} {[%emt 00:00:01]} a4 {[%clk 00:01:58]} {[%emt 00:00:27]}
13. a3 {[%clk 00:02:59]} {[%emt 00:00:04]} Na5 {[%clk 00:01:46]} {[%emt
00:00:14]} 14. Bg5 {[%clk 00:02:52]} {[%emt 00:00:09]} h6 {[%clk 00:01:45]}
{[%emt 00:00:04]} 15. Bf4 {[%clk 00:02:48]} {[%emt 00:00:06]} Nb3 {[%clk
00:01:42]} {[%emt 00:00:05]} 16. Rb1 {[%clk 00:02:47]} {[%emt 00:00:03]} Ba6
{[%clk 00:01:36]} {[%emt 00:00:08]} 17. N1h2 {[%clk 00:02:48]} {[%emt
00:00:01]} h5 {[%clk 00:01:32]} {[%emt 00:00:06]} 18. Bg5 {[%clk 00:02:48]}
{[%emt 00:00:02]} Qc7 {[%clk 00:01:30]} {[%emt 00:00:03]} 19. Bf6 {[%clk
00:02:43]} {[%emt 00:00:07]} Nf5 {[%clk 00:01:28]} {[%emt 00:00:05]} 20. g4
{[%clk 00:02:37]} {[%emt 00:00:08]} hxg4 {[%clk 00:01:28]} {[%emt 00:00:02]} 21.
Nxg4 {[%clk 00:02:38]} {[%emt 00:00:01]} Rab8 {[%clk 00:00:59]} {[%emt
00:00:31]} 22. Ne3 {[%clk 00:02:29]} {[%emt 00:00:10]} Nxe3 {[%clk 00:00:48]}
{[%emt 00:00:13]} 23. Rxe3 {[%clk 00:02:30]} {[%emt 00:00:01]} Bxf6 {[%clk
00:00:46]} {[%emt 00:00:04]} 24. exf6 {[%clk 00:02:31]} Qd8 {[%clk 00:00:47]}
25. Ne5 {[%clk 00:02:31]} {[%emt 00:00:02]} Qxf6 {[%clk 00:00:45]} {[%emt
00:00:04]} 26. Nd7 {[%clk 00:02:32]} {[%emt 00:00:02]} Qxh4 {[%clk 00:00:41]}
{[%emt 00:00:06]} 27. Nxb8 Rxb8 {[%clk 00:00:42]} 28. Qe1 {[%clk 00:01:58]}
{[%emt 00:00:36]} bxa3 {[%clk 00:00:37]} {[%emt 00:00:07]} 29. bxa3 {[%clk
00:01:59]} {[%emt 00:00:02]} Rd8 {[%clk 00:00:28]} {[%emt 00:00:11]} 30. Rh3
{[%clk 00:01:51]} {[%emt 00:00:10]} Qf6 {[%clk 00:00:29]} {[%emt 00:00:01]} 31.
Rf3 {[%clk 00:01:45]} {[%emt 00:00:08]} Qg5 {[%clk 00:00:29]} {[%emt 00:00:02]}
32. Rg3 {[%clk 00:01:45]} {[%emt 00:00:02]} Qf6 {[%clk 00:00:30]} 33. Rb2
{[%clk 00:01:34]} {[%emt 00:00:13]} e5 {[%clk 00:00:25]} {[%emt 00:00:08]} 34.
Re2 {[%clk 00:01:33]} {[%emt 00:00:02]} e4 {[%clk 00:00:19]} {[%emt 00:00:08]}
35. Bxe4 {[%clk 00:00:38]} {[%emt 00:00:58]} dxe4 {[%clk 00:00:20]} {[%emt
00:00:01]} 36. Rxe4 {[%clk 00:00:39]} Bxd3 {[%clk 00:00:16]} {[%emt 00:00:06]}
37. Re8+ {[%clk 00:00:36]} {[%emt 00:00:06]} Rxe8 {[%clk 00:00:17]} 38. Qxe8+
{[%clk 00:00:37]} Kg7 {[%clk 00:00:18]} 39. Rxd3 {[%clk 00:00:26]} {[%emt
00:00:12]} Nc1 {[%clk 00:00:12]} {[%emt 00:00:09]} 40. Rh3 {[%clk 00:00:20]}
{[%emt 00:00:08]} Qg5+ {[%clk 00:00:12]} {[%emt 00:00:01]} 41. Kf1 {[%emt
00:00:11]} 1-0